Cogmind - Beta 12 *** ADVENTURER MODE // 2023.10.27 @ 21:34:24 Player: Occam Result: Self-destructed Performance ------------- Evolutions (3) 1500 Regions Visited (6) 1200 Robots Destroyed (132) 660 Value Destroyed (4280) 4280 Prototype IDs (5) 100 Alien Tech Used (0) 0 Bonus (0) 0 TOTAL SCORE: 7740 Bonus ------- None Cogmind --------- Core Integrity 590/700 Matter 274/300 Energy 290/290 System Corruption 5% Temperature Cool (0) Movement Rolling (145) Ox3 Location -7/Factory Parts ------- > --- POWER (1) -------- Improved Deuterium Engine > --- PROPULSION (4) --- Light Treads Improved Treads Armored Huge Wheel > --- UTILITY (6) ------ Improved Heat Sink Huge Storage Unit Advanced Targeting Computer Hardlight Generator > --- WEAPON (2) ------- Gauss Cannon Gauss Cannon > --- INVENTORY (25) --- Improved Deuterium Engine Micro Nuclear Core Light Treads Light Treads Armored Huge Wheel Improved Heat Sink Improved Heat Sink Improved Cooling System Large Storage Unit High-capacity Matter Pod (170) Improved Signal Interpreter Core Analyzer Hacking Suite System Shield Long-range Tractor Beam Gatling Laser Gatling Laser Flak Gun Flak Gun Mini Assault Cannon Mini Assault Cannon Mini Assault Cannon Heavy Missile Launcher Chainsword Peak State ------------ > --- POWER ------------ Improved Deuterium Engine > --- PROPULSION ------- Improved Treads Armored Treads Armored Treads Advanced Treads > --- UTILITY ---------- Improved Heat Sink Huge Storage Unit Advanced Targeting Computer Medium Armor Plating Hardened Medium Armor Plating Hardlight Generator > --- WEAPON ----------- Mini Assault Cannon Mini Assault Cannon > --- INVENTORY -------- Improved Ion Engine Light Nuclear Core Light Nuclear Core Light Treads Improved Heat Sink Medium Storage Unit Large Storage Unit High-capacity Matter Pod Improved Signal Interpreter Core Analyzer Light Armor Plating Hardened Light Armor Plating Hardened Light Armor Plating Hardlight Generator Hacking Suite System Shield Long-range Tractor Beam Flak Gun Flak Gun Flak Gun Flak Gun Advanced Assault Cannon Mini Assault Cannon Mini Assault Cannon Rocket Launcher [Rating: 47] Favorites ----------- Power Improved Deuterium Engine Engine Improved Deuterium Engine Propulsion Armored Treads Treads Armored Treads Wheel Wheel Utility Huge Storage Unit Device Improved Heat Sink Storage Huge Storage Unit Processor Advanced Targeting Computer Protection Hardened Light Armor Plating Weapon Mini Assault Cannon Energy Gun Beam Rifle Energy Cannon Heavy Particle Cannon Ballistic Gun Light Assault Rifle Ballistic Cannon Mini Assault Cannon Launcher Rocket Launcher Build | -11 -10 -10 -10 -9 -8 -7 ------- Run | Jun Mat Min Exi Min Mat Fac Slots Evolved 6 | . . . . . 4 2 Power . | . . . . . . . Propulsion 2 | . . . . . 1 1 Utility 4 | . . . . . 3 1 Weapon . | . . . . . . . Parts Attached 66 | 7 6 . . . 25 28 Power 6 | 1 . . . . 1 4 Engine 6 | 1 . . . . 1 4 Core . | . . . . . . . Reactor . | . . . . . . . Propulsion 16 | 2 1 . . . 5 8 Treads 14 | 1 1 . . . 5 7 Leg . | . . . . . . . Wheel 2 | 1 . . . . . 1 Hover . | . . . . . . . Flight . | . . . . . . . Utility 29 | 2 3 . . . 15 9 Device 13 | 1 1 . . . 8 3 Storage 4 | 1 1 . . . 1 1 Processor 2 | . . . . . 1 1 Hackware . | . . . . . . . Protection 10 | . 1 . . . 5 4 Artifact . | . . . . . . . Weapon 15 | 2 2 . . . 4 7 Energy Gun 2 | 1 1 . . . . . Energy Cannon 3 | . . . . . 1 2 Ballistic Gun 2 | 1 . . . . . 1 Ballistic Cannon 7 | . 1 . . . 3 3 Launcher 1 | . . . . . . 1 Special Weapon . | . . . . . . . Impact Weapon . | . . . . . . . Slashing Weapon . | . . . . . . . Piercing Weapon . | . . . . . . . Special Melee Weapon . | . . . . . . . Unidentified Prototypes 3 | . . . . . 1 2 Parts Lost 11 | . . . . . 4 7 Power 1 | . . . . . . 1 Propulsion 5 | . . . . . 2 3 Utility 5 | . . . . . 2 3 Weapon . | . . . . . . . Highest Loss Streak 3 | . . . . . 3 2 To Critical Strikes . | . . . . . . . Average Slot Usage (%) 96 | . 99 100 100 100 96 95 Engine 9 | . 14 14 14 14 9 7 Treads 26 | . 20 28 28 28 25 26 Wheel 1 | . 7 . . . . . Device 11 | . 7 . . . 13 14 Storage 9 | . 14 14 14 14 9 6 Processor 4 | . . . . . 3 7 Protection 13 | . 6 14 14 14 16 12 Energy Gun 3 | . 14 14 14 14 . . Energy Cannon 1 | . . . . . 1 2 Ballistic Cannon 13 | . 8 14 14 14 15 12 Naked Turns . | . . . . . . . Heaviest Build 122 | 12 35 35 35 35 118 122 Greatest Support 85 | 10 40 40 40 40 62 85 Greatest Overweight (x) 4 | 1 3 . . . 1 4 Average Overweight (x) . | . 1 . . . . 1 Largest Inventory Capacity 25 | 8 15 15 15 15 25 25 Average Capacity 21 | 7 14 15 15 15 21 24 Most Carried 25 | 2 15 15 15 15 25 25 Average Carried 20 | 1 10 15 15 15 20 24 Final Capacity 25 | 8 15 15 15 15 25 25 Final Carried 25 | 2 15 15 15 15 25 25 Class Distribution -------------------- 100% | Mutant Dominant Class ---------------- Mutant | -10/Materials Mutant | -10/Mines Mutant | -10/Exiles Mutant | -9/Mines Mutant | -8/Materials Mutant | -7/Factory Resources | -11 -10 -10 -10 -9 -8 -7 ----------- Run | Jun Mat Min Exi Min Mat Fac Matter Collected 3413 | 230 382 . . 19 1090 1692 Remotely 416 | . . . . . 416 . Salvage Created 3855 | 26 408 . . 48 1355 2018 Parts 228 | 4 34 3 . 4 75 108 Haulers Intercepted 5 | . . . . . 5 . Recyclers Shooed 5 | . . . . . 3 2 Parts Field Recycled . | . . . . . . . Retrieved Matter . | . . . . . . . Parts Self-Destructed . | . . . . . . . Prevented . | . . . . . . . Kills | -11 -10 -10 -10 -9 -8 -7 ------- Run | Jun Mat Min Exi Min Mat Fac Combat Hostiles Destroyed 97 | . 15 . . 4 29 49 Guns 15 | . 10 . . 1 4 . Cannons 78 | . 5 . . 3 24 46 AOE 4 | . . . . . 1 3 Classes Destroyed 14 | 1 4 . . . 5 4 Worker 3 | . . . . . 1 2 Builder 3 | . 1 1 . . . 1 Tunneler 2 | 1 . . . . . 1 Hauler 5 | . . . . . 5 . Recycler 10 | . . . . . 3 7 Mechanic 2 | . . . . . . 2 Operator 1 | . . . . . . 1 Watcher 10 | . 2 . . . 5 3 Swarmer 26 | . 9 . . 3 6 8 Grunt 39 | . 6 . . 1 10 22 Duelist 2 | . . . . . . 2 Sentry 17 | . . . . . 11 6 Hunter 5 | . . . . . 2 3 Programmer 8 | . . . . . . 8 Best Kill Streak 7 | 1 6 1 . 3 6 7 Combat Bots Only 6 | . 6 . . 3 3 5 Max Kills in Single Turn 2 | 1 2 1 . 1 2 2 Gunslinging . | . . . . . . . Exploded 1 | . . . . . 1 1 Melee . | . . . . . . . Uniques/NPCs Destroyed . | . . . . . . . Combat | -11 -10 -10 -10 -9 -8 -7 -------- Run | Jun Mat Min Exi Min Mat Fac Damage Taken 3673 | . 231 . . 89 1398 1955 Core 352 | . 45 . . 20 177 110 Absorbed by Shields 1160 | . . . . . 32 1128 Regen/Repaired (Parts) 462 | . . . . . . 462 Core Remaining (%) 80 | 100 . . . 74 67 . Volleys Fired 277 | 1 33 . . 8 91 144 Largest 2 | 2 2 . . 2 2 2 Hottest 123 | 70 95 . . 95 123 123 Shots Fired 555 | 2 66 . . 16 180 291 Gun 74 | 2 50 . . 8 14 . Cannon 478 | . 16 . . 8 166 288 Launcher 3 | . . . . . . 3 Special . | . . . . . . . Kinetic 416 | 1 33 . . 8 149 225 Thermal 136 | 1 33 . . 8 31 63 Explosive 3 | . . . . . . 3 Electromagnetic . | . . . . . . . Robot Hit Streak 28 | 1 12 . . 7 24 28 Robot Miss Streak 3 | . 2 . . 2 3 2 Penetration Max 1 | . . . . . . 1 Secondary Targets . | . . . . . . . Shots Hit Robots 422 | 1 46 . . 11 136 228 Core Hits 176 | 1 19 . . 4 54 98 Critical Kills . | . . . . . . . Critical Parts Destroyed . | . . . . . . . Critical Strikes 27 | . 2 . . . 7 18 Burn 3 | . 2 . . . 1 . Blast 24 | . . . . . 6 18 Melee Attacks . | . . . . . . . Impact . | . . . . . . . Slashing . | . . . . . . . Piercing . | . . . . . . . Sneak Attacks . | . . . . . . . Combat Hostiles . | . . . . . . . Follow-up Attacks . | . . . . . . . Damage Inflicted 11829 | 12 708 12 . 213 3748 7136 Guns 699 | 12 432 . . 78 177 . Cannons 10279 | . 276 . . 135 3469 6399 Explosions 731 | . . . . . 44 687 Melee . | . . . . . . . Ramming 120 | . . 12 . . 58 50 Kinetic 8462 | . 347 . . 135 3119 4861 Thermal 2516 | 12 361 . . 78 527 1538 Explosive 731 | . . . . . 44 687 Electromagnetic . | . . . . . . . Impact . | . . . . . . . Slashing . | . . . . . . . Piercing . | . . . . . . . Highest Corruption 5 | . . . . . . 5 Average Corruption 2 | . . . . . . 2 Corruption Purged . | . . . . . . . Corruption Blocked . | . . . . . . . Effects 50 | . . . . . . 50 Message Errors 14 | . . . . . . 14 Matter Fused 13 | . . . . . . 13 Heat Flow Errors 1 | . . . . . . 1 Energy Discharges 3 | . . . . . . 3 Data Loss (minor) 7 | . . . . . . 7 Data Loss (major) 3 | . . . . . . 3 Misfires 6 | . . . . . . 6 Alerts 3 | . . . . . . 3 Overload Shots . | . . . . . . . Overflow Damage 246 | . . . . 3 94 149 Projectiles 223 | . . . . 3 89 131 Explosions 18 | . . . . . . 18 Melee 5 | . . . . . 5 . Knockbacks 59 | . 3 . . . 19 37 Impact 3 | . . . . . 2 1 Kinetic 53 | . 3 . . . 15 35 Secondary 3 | . . . . . 2 1 Self-Inflicted Damage 67 | . . . . . 64 3 Shots 1 | . . . . . 1 . Rammed 8 | . 1 1 . . 3 3 Targets Rammed 10 | . 1 2 . . 3 4 Kicked . | . . . . . . . Crushed 2 | . . 1 . . . 1 Highest Temperature 474 | 30 474 . . 288 396 372 Average Temperature 111 | 18 141 . . 122 113 96 Received Heat Transfer 1300 | . 108 . . 6 594 592 Effects 6 | . 1 . . . 4 1 Shutdowns 1 | . 1 . . . . . Energy Bleed 1 | . . . . . 1 . Interference 4 | . . . . . 3 1 Siege Activations . | . . . . . . . Robots Corrupted . | . . . . . . . Combat Hostiles . | . . . . . . . Parts Fried . | . . . . . . . Impact Corruptions 1 | . . . . . 1 . Robots Melted . | . . . . . . . Combat Hostiles . | . . . . . . . Parts Melted 5 | . 1 . . 1 3 . Heat Transferred 4514 | 37 1110 . . 185 1036 2146 Parts Sabotaged . | . . . . . . . Parts Stolen . | . . . . . . . Parts Stripped . | . . . . . . . Power Chain Reactions . | . . . . . . . Missiles Intercepted . | . . . . . . . Alert | -11 -10 -10 -10 -9 -8 -7 ------- Run | Jun Mat Min Exi Min Mat Fac Peak Influence 273 | 5 257 23 . 105 245 273 Initial 34 | . 2 18 . . 34 . Average 98 | . 141 12 . 55 91 109 Maximum Alert Level 1 | . 1 . . . 1 1 Low Security (%) 83 | 100 63 100 . 100 89 81 Level 1 16 | . 36 . . . 10 18 Level 2 . | . . . . . . . Level 3 . | . . . . . . . Level 4 . | . . . . . . . Level 5 . | . . . . . . . High Security . | . . . . . . . Max Security . | . . . . . . . Squads Dispatched 21 | . 3 . . 1 4 13 Investigation 11 | . 3 . . 1 2 5 Extermination 4 | . . . . . . 4 Reinforcement 3 | . . . . . 1 2 Assault 1 | . . . . . . 1 Garrison 2 | . . . . . 1 1 Intercept . | . . . . . . . Searches Triggered . | . . . . . . . Construction Impeded 1 | . . . . . . 1 Haulers Reinforced 1 | . . . . . . 1 Active Scanning Responses . | . . . . . . . Cargo Convoy Interrupts . | . . . . . . . Stealth | -11 -10 -10 -10 -9 -8 -7 --------- Run | Jun Mat Min Exi Min Mat Fac Distress Signals 1 | . 1 . . . . . Communications Jammed . | . . . . . . . Distress Signals . | . . . . . . . Times Spotted 122 | . 21 . . 4 37 60 Peak Tracking Total 6 | . 6 . . 3 5 6 Tactical Retreats 6 | . 3 . . . . 3 Traps | -11 -10 -10 -10 -9 -8 -7 ------- Run | Jun Mat Min Exi Min Mat Fac Traps Triggered 7 | . 3 . . . 1 3 Indirectly . | . . . . . . . Trap Hack Attempts . | . . . . . . . Triggered . | . . . . . . . Disarmed . | . . . . . . . Reprogrammed . | . . . . . . . Reused . | . . . . . . . Traps Extracted . | . . . . . . . Installed . | . . . . . . . Triggered . | . . . . . . . Machines | -11 -10 -10 -10 -9 -8 -7 ---------- Run | Jun Mat Min Exi Min Mat Fac Machines Disabled 10 | . . . . . 3 7 Max in Single Turn 2 | . . . . . 2 2 Garrison Access 2 | . . . . . 1 1 Machines Repaired . | . . . . . . . Machines Sabotaged . | . . . . . . . Overloaded Fab Kills . | . . . . . . . Hacking | -11 -10 -10 -10 -9 -8 -7 --------- Run | Jun Mat Min Exi Min Mat Fac Machines Accessed 34 | . 6 . . 1 13 14 Terminals 23 | . 6 . . 1 10 6 Fabricators 1 | . . . . . . 1 Repair Stations 3 | . . . . . 1 2 Recycling Units 3 | . . . . . 1 2 Scanalyzers 3 | . . . . . . 3 Garrison Access 1 | . . . . . 1 . Total Hacks 102 | . 19 . . 3 38 42 Successful 64 | . 7 . . 2 22 33 Failed 37 | . 12 . . 1 15 9 Catastrophic 2 | . 2 . . . . . Database Lockouts 1 | . . . . . 1 . Manual 59 | . 18 . . 2 24 15 Terminals 72 | . 19 . . 3 34 16 Fabricators 2 | . . . . . . 2 Repair Stations 11 | . . . . . 2 9 Recycling Units 3 | . . . . . 1 2 Scanalyzers 13 | . . . . . . 13 Garrison Access 1 | . . . . . 1 . Terminal Hacks 28 | . 4 . . 2 16 6 Robot Analysis 9 | . 1 . . 2 5 1 Prototype ID Bank 1 | . . . . . 1 . Branch Access Points 1 | . . . . . 1 . Terminal Index 3 | . 1 . . . 1 1 Fabricator Index 1 | . . . . . . 1 Repair Station Index 1 | . . . . . . 1 Recycling Unit Index 1 | . . . . . 1 . Alert Level 3 | . . . . . 3 . Unreport Threat 2 | . . . . . 2 . Locate Traps 3 | . 1 . . . 1 1 Hauler Manifests 2 | . 1 . . . . 1 Registered Prototypes 1 | . . . . . 1 . Fabricator Hacks 1 | . . . . . . 1 Network Status 1 | . . . . . . 1 Repair Station Hacks 8 | . . . . . 1 7 Scan Component 5 | . . . . . 1 4 Repair 3 | . . . . . . 3 Recycling Unit Hacks 1 | . . . . . 1 . Report Inventory 1 | . . . . . 1 . Scanalyzer 13 | . . . . . . 13 Insert Component 6 | . . . . . . 6 Analyze 7 | . . . . . . 7 Garrison Access Hacks 1 | . . . . . 1 . Seal Access 1 | . . . . . 1 . Unauthorized Hacks 12 | . 3 . . . 3 6 Terminals 9 | . 3 . . . 3 3 Botnet 9 | . 3 . . . 3 3 Fabricators 1 | . . . . . . 1 Report 1 | . . . . . . 1 Repair Stations . | . . . . . . . Recycling Units 2 | . . . . . . 2 Tunnel 2 | . . . . . . 2 Scanalyzers . | . . . . . . . Garrison Access . | . . . . . . . Data Cores Recovered 1 | . . . . . . 1 Used 1 | . . . . . . 1 Hacking Detections 26 | . 6 . . 1 9 10 Full Trace Events 5 | . 1 . . 1 1 2 Feedback Events . | . . . . . . . Feedback Blocked . | . . . . . . . Robot Schematics Acquired . | . . . . . . . Robots Built . | . . . . . . . Authchips . | . . . . . . . Time . | . . . . . . . Total Robot Build Rating . | . . . . . . . Part Schematics Acquired 5 | . . . . . . 5 Parts Built . | . . . . . . . Authchips . | . . . . . . . Time . | . . . . . . . Total Part Build Rating . | . . . . . . . Parts Repaired 2 | . . . . . . 2 Time 90 | . . . . . . 90 Parts Recycled . | . . . . . . . Recycled Matter . | . . . . . . . Retrieved Matter . | . . . . . . . Retrieved Components . | . . . . . . . Parts Scanalyzed 5 | . . . . . . 5 Part Schematics Acquired 5 | . . . . . . 5 Parts Damaged . | . . . . . . . Bothacking | -11 -10 -10 -10 -9 -8 -7 ------------ Run | Jun Mat Min Exi Min Mat Fac Used RIF Installer . | . . . . . . . Robots Hacked . | . . . . . . . Non-combat . | . . . . . . . Combat . | . . . . . . . Robot Hacks Applied . | . . . . . . . Relay Couplers Released 5 | . . . . . . 5 Machine Destruction 1 | . . . . . . 1 Programmers 4 | . . . . . . 4 Fabnet Peak Effective % . | . . . . . . . Robots Rewired . | . . . . . . . Allies Hacked . | . . . . . . . Hacks Repelled . | . . . . . . . Allies | -11 -10 -10 -10 -9 -8 -7 -------- Run | Jun Mat Min Exi Min Mat Fac Total Allies . | . . . . . . . Largest Group . | . . . . . . . Highest-Rated Group . | . . . . . . . Highest-Rated Ally . | . . . . . . . Total Orders . | . . . . . . . Ally Attacks . | . . . . . . . Total Damage . | . . . . . . . Kills . | . . . . . . . Allies Corrupted . | . . . . . . . Allies Melted . | . . . . . . . Intel | -11 -10 -10 -10 -9 -8 -7 ------- Run | Jun Mat Min Exi Min Mat Fac Robot Analysis Total 9 | . 1 . . 2 5 1 Derelict Logs Recovered 1 | . . 1 . . . . Drone Launches . | . . . . . . . Drone Recoveries . | . . . . . . . Exploration | -11 -10 -10 -10 -9 -8 -7 ------------- Run | Jun Mat Min Exi Min Mat Fac Turns Passed 9493 | 69 924 655 517 95 3078 4155 Spaces Moved 4183 | 59 602 407 324 43 1236 1512 Core 2 | 2 . . . . . . Treads 3565 | . 244 407 324 43 1236 1311 Legs . | . . . . . . . Wheels 616 | 57 358 . . . . 201 Hover . | . . . . . . . Flight . | . . . . . . . Fastest Speed 50 | 50 95 160 160 160 155 145 Average Speed 196 | 91 130 160 160 160 216 230 Slowest Speed 243 | 95 160 160 160 160 241 243 Overloaded Moves . | . . . . . . . Propulsion Burnouts . | . . . . . . . Robots Hopped . | . . . . . . . Cave-ins Triggered . | . . . . . . . Exploration Rate (%) 57 | 4 99 86 65 12 97 38 Regions Visited 6 Branch Regions 3 Pre-discovered Areas 3 | . . 1 . . . 2 Known Exits Taken 1 | . . . . . 1 . Unknown Exits Taken 5 | 1 1 1 1 1 . . Scrap Searched 1 | . . 1 . . . . Spaces Dug . | . . . . . . . Terrain Destroyed 128 | . . . . . 47 81 Melee . | . . . . . . . Projectile 54 | . . . . . 21 33 AOE 74 | . . . . . 26 48 Terrain Rammed . | . . . . . . . Walls Destroyed . | . . . . . . . Machines Disabled . | . . . . . . . Actions | -11 -10 -10 -10 -9 -8 -7 --------- Run | Jun Mat Min Exi Min Mat Fac Total 4896 | 68 679 410 323 53 1466 1897 Wait 237 | . 19 . . 3 66 149 Move 4177 | 58 601 406 323 42 1235 1512 Hop . | . . . . . . . Pick Up 71 | 2 13 1 . . 21 34 Fast Attach 30 | 7 3 . . . 9 11 Attach 15 | . . . . . 5 10 Detach 15 | . 2 . . . 6 7 Swap 21 | . 3 . . . 11 7 Drop 43 | . 4 1 . . 19 19 Fire 277 | 1 33 . . 8 91 144 Melee . | . . . . . . . Ram 1 | . . . . . . 1 Kick . | . . . . . . . Crush 9 | . 1 2 . . 3 3 Escape Stasis . | . . . . . . . Rewire . | . . . . . . . Trap . | . . . . . . . Miscellaneous . | . . . . . . . Route ------- -11/Junkyard -10/Materials (discovered 4 exits: [*Mat x3] / [*Min]) -10/Mines (discovered 3 exits: [*Mat x2] / *Exi) -10/Exiles -9/Mines -8/Materials (discovered 3 exits: *Fac x3) -7/Factory (discovered 3 exits: [*Fac x2] / [*Low]) History --------- Turn | Location | Event 19 | -11/Junkyard | Discovered new exit (range 16) 70 | -11/Junkyard | Entered Materials 266 | -10/Materials | Discovered new exit (range 11) 310 | -10/Materials | Build established: Mutant 429 | -10/Materials | Discovered new exit (range 12) 767 | -10/Materials | Discovered new exit (range 7) 954 | -10/Materials | Discovered new exit (range 9) 994 | -10/Materials | Entered Mines 1140 | -10/Mines | A weapon hastily lodged in a ceiling crevice suddenly fell to the ground 1204 | -10/Mines | Discovered new exit (range 9) 1218 | -10/Mines | Learned location of Storage (-9) 1294 | -10/Mines | Discovered new exit (range 14) 1367 | -10/Mines | Learned 8 Materials zone layouts 1578 | -10/Mines | Deemed a non-threat by the Exiles lab entrance 1578 | -10/Mines | Discovered new exit (range 5) 1649 | -10/Mines | Entered Exiles 1649 | -10/Exiles | Found Exiles lab abandoned 2123 | -10/Exiles | Discovered new exit (range 14) 2166 | -10/Exiles | Entered Mines 2209 | -9/Mines | Discovered new exit (range 8) 2254 | -9/Mines | Assembled infested the area 2261 | -9/Mines | Entered Materials 2261 | -8/Materials | Evolved 4 slots: Propulsion x1, Utility x3 2262 | -8/Materials | Identified exit to Factory 2922 | -8/Materials | Lost 3 parts (2n1u) 3061 | -8/Materials | Garrison activated, responded to threat 4181 | -8/Materials | Discovered exit to Factory (range 16) 4638 | -8/Materials | Central database locked down 4880 | -8/Materials | Discovered exit to Factory (range 15) 5339 | -8/Materials | Entered Factory 5339 | -7/Factory | Evolved 2 slots: Propulsion x1, Utility x1 6808 | -7/Factory | Garrison activated, responded to threat 7789 | -7/Factory | Discovered new exit (range 5) 8161 | -7/Factory | Discovered new exit (range 15) 9006 | -7/Factory | Discovered new exit (range 11) 9348 | -7/Factory | Repaired Huge Storage Unit 9444 | -7/Factory | Repaired Imp. Treads 9494 | -7/Factory | Self-destructed Last Messages --------------- 09458_ System corrupted: Component data lost. 09470_ Penetrated by Slug. 09470_ Repair Station disabled. 09470_ Slug penetrates H-55 Commando. 09473_ Penetrated by Slug. 09475_ H-55 Commando knocked back. 09476_ Penetrated by Slug. 09479_ Lgt. Armor Plating destroyed. 09479_ K-01 Serf collects debris. 09481_ Slug penetrates H-55 Commando. 09481_ H-55 Commando destroyed. 09483_ K-01 Serf collects debris. 09484_ K-01 Serf destroyed. 09486_ K-01 Serf collects debris. 09487_ Acquired 23 matter. 09489_ K-01 Serf collects debris. 09490_ Acquired 7 matter. 09490_ U-05 Engineer builds a Wall. 09490_ K-01 Serf collects debris. 09492_ Acquired 9 matter. Map ----- +----------------------------------------------------+ | ###### #?????????????????????????????????????????? | | ?????# #?????????????????????????????????????????? | | ?????# #?????????????????????????????????????????? | | ?????# #?????????????????????????????????????????? | | ######+#####?????????????????????????????????????? | | # [ #?????????????????????????????????????? | | # #?????????????????????????????????????? | | # """"""" #?????????????????????????????????????? | | + """"""" #?????????????????????????????????????? | | # """"""" #?????????????????????????????????????? | | # """"""" #?????????????????????????????????????? | | # #?????????????????????????????????????? | | # #?????????????? #?????????????????????? | | # #?????????????? #?????????????????????? | | # #????????????? #?????????????????????? | | # #????????????? #?????????????????????? | | # !! #????????????? #?????????????????????? | | # ! #????????????? #?????????????????????? | | # * #????????????? ??????? ?????????????? | | + #??????????###+####### ?????????????? | | ## #################### ?????????????? | | ####???# """ + ?????????????? | | #??????# """ """ "R" # ?????????????? | | #???????/ """ """ # ????????????????? | | #??????# """ """ k; #??????????????????????? | | #??????# !!;[ @#??????????????????????? | | ###????# ! % # * #??????????????????????? | | %#????################u ##?????????????????????? | | ####################u "#????????????????????? | | ! ! %= %k ##????????????????????? | | = *% % ###???????????????????? | | % % =% %%% " #???????????????????? | | ####################% % # #???????????????????? | | #??????????????????### #####???????????????????? | | =##????????????????????#+#???????????????????????? | | =#???????????????????????????????????????????????? | | %#???????????????????????????????????????????????? | | ##############??????????????????????????????????? | | # #??????????????????????????????????? | | #! #??????????????????????????????????? | | # #??????????????????????????????????? | | # """ """ #??????????????????????????????????? | | # """ """ #??????????????????????????????????? | | # """ """ #??????????????????????????????????? | | + #??????????????????????????????????? | | # """ """ #??????????????????????????????????? | | # """ """ #??????????????????????????????????? | | # """ """ #??????????????????????????????????? | | ## #??????????????????????????????????? | | ##[ #??????????????????????????????????? | +----------------------------------------------------+ Best States ------------- Heat Dissipation 59 Energy Generation 16 Energy Capacity 290 Matter Stores 300 Matter Capacity 300 Sight Range 16 Robot Scan Range 15 Terrain Scan Density 10 Corruption Block 8 Armor Coverage 450 Resistance: KI 20 Resistance: TH 20 Resistance: EX 20 Resistance: EM 20 Resistance: I 20 Resistance: S 20 Resistance: P 20 Evasion (%) 44 Targeting Accuracy 8 Recoil Reduction 4 Offensive Hacking 10 Item Schematics ----------------- Rocket Launcher | -7/Factory | Scanalyzed System Shield | -7/Factory | Scanalyzed Lrg. Storage Unit | -7/Factory | Scanalyzed Gatling Laser | -7/Factory | Scanalyzed Imp. Treads | -7/Factory | Scanalyzed Robot Schematics ------------------ None Fabricated ------------ Nothing Alien Tech Used ----------------- None Achievements -------------- None Challenges ------------ None Game ------ Seed ElectronFieldThruster Manual? 0 Play Time 01:11:44 Cumulative 116.8 hours Start 2023.10.23 @ 21:24:15 End 2023.10.27 @ 21:34:24 Sessions 3 Manual Loads 0 Difficulty Adventurer Special Mode None Game No. 103 Rogue 0 Adventurer 103 Explorer 0 Win Type - Total 1 Types 1/0/0/0/0/0/0/0/0 Lore% 52 Gallery% 53 Achievement% 46 Wizard Run 0 Options --------- ASCII 0 Keyboard 0 Movement Mouse Keybinds 0 Fullscreen 2 Font 20/SmallcapsGlow Map View 66x50 Tactical HUD 1 Map Filters NONE Filters NONE Steam X RUN: 98a46048-32b9-46b2-bc5e-8448a37cb3cf